Workbook

Sheet Vejledning
A1: Fane navn | B1: Forklaring
A2: Kender lønnen | B2: Benyttes hvis du kender bruttobeløbet, og vil kontrollere om Feriepenge-, SH/FF- og pensionbeløbet er korrekt. Felterne kender timerne og kender lønnen, giver et rettesnor for indtjeningen.
A3: Kender Pensionsbeløbet | B3: Her beregnes "baglæns" fra et brutto pensionsbeløb.
A4: Kender Feriepengebeløbet | B4: Her beregnes "baglæns" fra et brutto feriepengebeløb.
A5: Kender SH og FF beløbet | B5: Her beregnes "baglæns" fra et brutto SH og FFbeløb.
A6: Kender Feriepenge, SH og FF | B6: Her beregnes "baglæns" fra et brutto feriepenge-, SH-, og FFbeløb.
A7: Kender nettobeløbet | B7: Her beregnes "baglæns" fra et nettobeløb, det forudsætter at man kender trækprocent og lønmodtagerfradrag.
A8: Arbejdsdagsberegner | B8: Denne benyttet til at beregne antal arbejdsdage i en defineret periode mellem 2 datoer, og derefter modregne afholdt ferie og feriefridage, Og udfra den oplyste timeløn at beregne løn, feriepenge, SH og feriefridagsgodtgørelse samt pension i den definerede periode..

Sheet Lønseddel
B1: Enheder | D1: Sats | E1: I alt
A2: Løn | B2: 66.5 | D2: 275 | E2: =SUM(B2*D2) -> 18287.5
A4: Akkordoverskud | B4: 1 | D4: 9500 | E4: =SUM(B4*D4) -> 9500
A6: Overarbejde med 50% tillæg | B6: 8 | C6: 0.5 | D6: =SUM($D$2*C6) -> 137.5 | E6: =SUM(B6*D6) -> 1100
A7: Overarbejde med 100% tillæg | B7: 12 | C7: 1 | D7: =SUM($D$2*C7) -> 275 | E7: =SUM(B7*D7) -> 3300
A9: Sygeløn | B9: 7.5 | D9: 133 | E9: =SUM(B9*D9) -> 997.5
A11: Skurpenge | B11: 3 | D11: 57.5 | E11: =SUM(B11*D11) -> 172.5
A12: Skurpenge | B12: 2 | D12: 90 | E12: =SUM(B12*D12) -> 180
A14: Køretid | B14: 225 | D14: 0.75 | E14: =SUM(B14*D14) -> 168.75
A16: Skattepligtige kørepenge * | B16: 100 | D16: 2.1 | E16: =SUM(B16*D16) -> 210
B18: Sats
A19: Ferieberettiget løn i alt | C19: =SUM(E2:E14) -> 33706.25 | E19: =SUM(E2:E16) -> 33916.25
A21: Feriepenge | B21: 0.125 | C21: =SUM(C19*B21) -> 4213.28125
A23: SH-, og Feriefridagsgodtgørelse | B23: 0.069 | C23: =SUM(C19*B23) -> 2325.73125
A25: Pensionsgrundlag | C25: =SUM(C19:C23)+E16 -> 40455.2625
A27: Pension - Virksomhed | B27: 0.0815 | C27: =SUM(C25*B27) -> 3297.103894
A29: Pension - Medarbejder | B29: 0.04 | C29: =SUM(C25*B29) -> 1618.2105 | E29: =-SUM(C29) -> -1618.2105
A31: ATP - Medarbejder | E31: -90
C32: Sats
A33: Arbejdsmarkeds bidragspligtigt beløb | B33: =SUM(E19:E31) -> 32208.0395 | C33: 0.08 | E33: =-SUM(B33*C33) -> -2576.64316
A35: G-dage | B35: 3 | D35: 788 | E35: =SUM(B35*D35) -> 2364
A37: Skattefradrag | B37: -7500 | D37: =SUM(B33,E33,E35) -> 31995.39634
A39: A-Skat | C39: 0.42 | D39: =SUM(B37:D37) -> 24495.39634 | E39: =-SUM(D39*C39) -> -10288.06646
B41: Enheder | D41: Sats
A42: Skattefrie kørepenge | B42: 100 | D42: 2.1 | E42: =SUM(B42*D42) -> 210
A44: Skattefrie Diæter | B44: 3 | D44: 275 | E44: =SUM(B44*D44) -> 825
A46: Til udbetaling | E46: =SUM(E19:E42) -> 21917.32988
A48: * Skattepligtige kørepenge er pensionsberettigede, men ikke Ferie og SH berettigede.

Sheet Løn inkl. alle tillæg
A2: Lønnen er inkl. alle de overenskomstmæssige tillæg
A3: Gennemsnitslønnen fra det nationale websted www.workplacedenmark.dk for det pågældende arbejde i den pågældende region. (Eller den aftalte løn jf. §2), indsættes i kr. her:
D5: Pension | E5: 0.1015
D6: Løn eskl. pension | F6: =F4/(1+SUM(E5)) -> 0
D7: SH | E7: 0.13
D8: Feriepenge | E8: 0.125
A9: Grundtimelønnen eksl. feriepenge, SH og pension udgør kr.: | E9: =F6/(1+SUM(E7,E8)) -> 0
A11: Denne løn er medarbejederns grundtimeløn, som skal udbetales ved hver lønperiode afslutning.
A13: Er der overarbejde eller andre variable tillæg, skal disse tillægges grundtimelønnen.
A14: Variable arbejdstidstillæg
B15: Enheder | C15: Sats
A16: Antal timer | C16: =ROUND(E9,2) -> 0 | F16: =C16*B16 -> 0
A17: Smudstillæg | C17: 10.5 | F17: =C17*B17 -> 0
A18: Tillæg ved skiftende arbejdssteder | C18: 63.8 | F18: =C18*B18 -> 0
A19: Overarbejde 1-2 timer | C19: 43.25 | F19: 0
A20: Overarbejde over 2 timer | C20: 121.25 | F20: 0
A21: Forskudt tid 18-22 | C21: 24.05 | F21: 0
A22: Forskudt tid 22-06 | C22: 47.25 | F22: 0
A23: Tillæg for rejsearbejde (Afstand i km) | C23: =IF(B23<7,Tillæg!C2,IF(B23<10.001,Tillæg!B2,IF(B23<13.001,Tillæg!B3,IF(B23<16.001,Tillæg!B4,IF(B23<20.001,Tillæg!B5,IF(B23<25.001,Tillæg!B6,IF(B23<30.001,Tillæg!B7,IF(B23<35.001,Tillæg!B8,IF(B23<40.001,Tillæg!B9,IF(B23<45.001,Tillæg!B10,IF(B23<50.001,Tillæg!B11,IF(B23<55.001,Tillæg!B12,IF(B23<60.001,Tillæg!B13,IF(B23<65.001,Tillæg!B14,IF(B23<70.001,Tillæg!B15,IF(B23<75.001,Tillæg!B16,IF(B23>75.001,Tillæg!B17,))))))))))))))))) -> 0 | F23: =(B16-B19-B20)*C23 -> 0
A25: Brutto betaling inkl. variable arbejdstidstillæg
A27: Medarbejderens samlede bruttobetaling inkl. variable arbejdstidstillæg (f.eks forskudtid, overarbejde) for den pågældende lønperiode, indsættes i kr. her:
F28: =SUM(F16:F23) -> 0
A31: Feriepengene udgør af periodens bruttobetaling kr.: | E31: =SUM($E$8) -> 0.125 | F31: =SUM(F28*E31) -> 0
A32: Søgnehelligdagsbetalingen udgør af periodens bruttobetaling kr.: | E32: =SUM($E$7) -> 0.13 | F32: =SUM(F28*E32) -> 0
A33: Pensionsgrundlag kr.: | E33: =SUM(F28+F31+F32) -> 0
A34: Pensionen udgør af periodens bruttobetaling kr.: | E34: =SUM($E$5) -> 0.1015 | F34: =SUM(E33*E34) -> 0
D36: Opsat løn der skal udbetales til medarbejder | E36: =SUM(F28+F31+F32+F34) -> 0 | F36: kr.

Sheet Tillæg
A1: KM | B1: 2023
A2: 7 | B2: 10.1
A3: 10 | B3: 14.1
A4: 13 | B4: 17.95
A5: 16 | B5: 23.35
A6: 20 | B6: 29.45
A7: 25 | B7: 34.2
A8: 30 | B8: 37.45
A9: 35 | B9: 39.65
A10: 40 | B10: 43
A11: 45 | B11: 47.15
A12: 50 | B12: 50.95
A13: 55 | B13: 55.05
A14: 60 | B14: 59.15
A15: 65 | B15: 63.15
A16: 70 | B16: 67.2
A17: 75+ | B17: 90.25
A19: Satser pr. 01.03.2022
A20: Svend: | B20: Sats
A21: Smuds | B21: 10.05
A22: Skift. Arb. | B22: 61.05
A23: OA 1-2 | B23: 41.8
A24: OA 2+ | B24: 117.15
A25: Forskudt tid 18-22 | B25: 23
A26: Forskudt tid 22-06 | B26: 45.2
